Cogmind - Beta 12 X1 @@@ ROGUE MODE // 2022.08.29 @ 17:30:29 Player: btmk16 Result: Self-destructed Performance ------------- Evolutions (5) 2500 Regions Visited (6) 1200 Robots Destroyed (12) 60 Value Destroyed (302) 302 Prototype IDs (1) 20 Alien Tech Used (0) 0 Bonus (0) 0 TOTAL SCORE: 4082 Bonus ------- None Cogmind --------- Core Integrity 1000/1000 Matter 147/300 Energy 100/100 System Corruption 0% Temperature Cool (1) Movement Flying (40) Location -5/Factory Parts ------- > --- POWER (2) -------- (None) > --- PROPULSION (8) --- Nuclear Pulse Thruster > --- UTILITY (5) ------ Coolant Injector Advanced Terrain Scan Processor Advanced Terrain Scan Processor Transmission Jammer Improved System Shield > --- WEAPON (2) ------- Power Maul > --- INVENTORY (5) ---- Improved Coolant Injector Improved Coolant Injector Small Storage Unit Small Laser Missile Launcher Peak State ------------ > --- POWER ------------ (None) > --- PROPULSION ------- Nuclear Pulse Thruster > --- UTILITY ---------- Coolant Injector Advanced Terrain Scan Processor Advanced Terrain Scan Processor Transmission Jammer Improved System Shield > --- WEAPON ----------- Power Maul > --- INVENTORY -------- Improved Coolant Injector Small Storage Unit Small Laser Missile Launcher [Rating: 31] Favorites ----------- Power Light Ion Engine Engine Light Ion Engine Power Core Nuclear Core Propulsion Flight Unit Treads Light Treads Flight Unit Flight Unit Utility Hacking Suite Device Transmission Jammer Storage Small Storage Unit Processor System Guard Hackware Hacking Suite Protection Propulsion Shielding Weapon Medium Laser Energy Gun Medium Laser Ballistic Gun Improved Assault Rifle Launcher Heavy Rocket Launcher Impact Weapon Power Maul Build | -11 -10 -9 -8 -7 -6 -5 ------- Run | Scr Mat Mat Mat Fac Fac Fac Slots Evolved 10 | . . 2 2 2 2 2 Power 1 | . . . 1 . . . Propulsion 6 | . . 2 1 1 . 2 Utility 3 | . . . . 1 2 . Weapon . | . . . . . . . Parts Attached 35 | 4 3 5 4 4 13 2 Power 4 | . 1 . 1 1 1 . Engine 3 | . 1 . . 1 1 . Core 1 | . . . 1 . . . Reactor . | . . . . . . . Propulsion 11 | 2 2 3 2 . 2 . Treads 2 | 2 . . . . . . Leg . | . . . . . . . Wheel . | . . . . . . . Hover . | . . . . . . . Flight 9 | . 2 3 2 . 2 . Utility 14 | . . 1 1 3 7 2 Device 3 | . . . . 1 . 2 Storage 1 | . . 1 . . . . Processor 6 | . . . . . 6 . Hackware 3 | . . . 1 1 1 . Protection 1 | . . . . 1 . . Artifact . | . . . . . . . Weapon 6 | 2 . 1 . . 3 . Energy Gun 2 | 2 . . . . . . Energy Cannon . | . . . . . . . Ballistic Gun 1 | . . 1 . . . . Ballistic Cannon . | . . . . . . . Launcher 2 | . . . . . 2 . Special Weapon . | . . . . . . . Impact Weapon 1 | . . . . . 1 . Slashing Weapon . | . . . . . . . Piercing Weapon . | . . . . . . . Special Melee Weapon . | . . . . . . . Unidentified Prototypes 1 | . . 1 . . . . Parts Lost 14 | . . 1 1 8 4 . Power 2 | . . . . 1 1 . Propulsion 8 | . . 1 1 5 1 . Utility 1 | . . . . . 1 . Weapon 3 | . . . . 2 1 . Highest Loss Streak 8 | . . 1 1 8 1 . To Critical Strikes . | . . . . . . . Average Slot Usage (%) 41 | . 60 81 82 85 16 41 Engine 3 | . 3 11 4 5 1 . Core 1 | . . . 4 7 . . Treads 2 | . 19 . . . . . Flight 13 | . 8 39 45 35 2 5 Storage 2 | . . 8 9 7 . . Processor 4 | . . . . . 7 11 Hackware 3 | . . . 1 11 2 5 Energy Gun 6 | . 28 15 9 6 . . Ballistic Gun 2 | . . 6 9 7 . . Naked Turns 87 | . . . . . 87 . Heaviest Build 21 | 3 6 13 17 21 3 5 Greatest Support 21 | 3 8 16 21 21 6 6 Greatest Overweight (x) 3 | . . . . 3 . . Average Overweight (x) . | . . . . . . . Largest Inventory Capacity 8 | 5 5 8 8 8 5 5 Average Capacity 5 | 5 5 7 8 8 5 5 Most Carried 8 | 3 5 4 3 8 5 5 Average Carried 4 | 2 3 2 1 5 4 3 Final Capacity 8 | 5 5 8 8 8 5 5 Final Carried 8 | 3 5 2 2 8 5 5 Class Distribution -------------------- 77% | Mutant 12% | Hacker-Sprinter 10% | Scavenger-Sprinter Dominant Class ---------------- Mutant | -10/Materials Mutant | -9/Materials Scavenger-Sprinter | -8/Materials Hacker-Sprinter | -7/Factory Mutant | -6/Factory Mutant | -5/Factory Resources | -11 -10 -9 -8 -7 -6 -5 ----------- Run | Scr Mat Mat Mat Fac Fac Fac Matter Collected 328 | 126 41 . 153 8 . . Remotely . | . . . . . . . Salvage Created 190 | . 41 20 . . 129 . Parts 23 | . 8 5 . . 10 . Haulers Intercepted . | . . . . . . . Recyclers Shooed . | . . . . . . . Parts Field Recycled . | . . . . . . . Retrieved Matter . | . . . . . . . Parts Self-Destructed . | . . . . . . . Prevented . | . . . . . . . Kills | -11 -10 -9 -8 -7 -6 -5 ------- Run | Scr Mat Mat Mat Fac Fac Fac Combat Hostiles Destroyed 12 | . 3 2 . . 7 . Guns 5 | . 3 2 . . . . AOE 7 | . . . . . 7 . Classes Destroyed 3 | . 1 . . . 2 . Swarmer 9 | . 3 2 . . 4 . Cutter 2 | . . . . . 2 . Grunt 1 | . . . . . 1 . Best Kill Streak 4 | . 3 2 . . 4 . Combat Bots Only 4 | . 3 2 . . 4 . Max Kills in Single Turn 3 | . 1 1 . . 3 . Gunslinging . | . . . . . . . Exploded 3 | . . . . . 3 . Melee . | . . . . . . . Uniques/NPCs Destroyed . | . . . . . . . Combat | -11 -10 -9 -8 -7 -6 -5 -------- Run | Scr Mat Mat Mat Fac Fac Fac Damage Taken 1876 | . 338 155 119 271 993 . Core 1003 | . 60 39 15 64 825 . Absorbed by Shields . | . . . . . . . Redirected to Shielding 14 | . . . . 14 . . Core Remaining (%) 75 | 100 76 90 97 90 2 . Volleys Fired 17 | . 6 5 . . 6 . Largest 2 | . 2 2 . . 1 . Hottest 90 | . 90 73 . . 39 . Shots Fired 28 | . 12 10 . . 6 . Gun 22 | . 12 10 . . . . Cannon . | . . . . . . . Launcher 6 | . . . . . 6 . Special . | . . . . . . . Kinetic 5 | . . 5 . . . . Thermal 17 | . 12 5 . . . . Explosive 6 | . . . . . 6 . Electromagnetic . | . . . . . . . Robot Hit Streak 3 | . 2 3 . . 1 . Robot Miss Streak 8 | . 4 5 . . 8 . Penetration Max . | . . . . . . . Secondary Targets 1 | . . 1 . . . . Max Gunslinging Chain 1 | . . 1 . . . . Shots Hit Robots 9 | . 4 4 . . 1 . Core Hits 14 | . 3 2 . . 9 . Critical Kills . | . . . . . . . Critical Parts Destroyed . | . . . . . . . Critical Strikes 1 | . . 1 . . . . Burn 1 | . . 1 . . . . Melee Attacks 2 | . . . . . 2 . Impact 2 | . . . . . 2 . Slashing . | . . . . . . . Piercing . | . . . . . . . Sneak Attacks . | . . . . . . . Combat Hostiles . | . . . . . . . Follow-up Attacks . | . . . . . . . Damage Inflicted 763 | . 52 81 . 5 625 . Guns 128 | . 47 81 . . . . Cannons . | . . . . . . . Explosions 523 | . . . . . 523 . Melee . | . . . . . . . Ramming 112 | . 5 . . 5 102 . Kinetic 30 | . . 30 . . . . Thermal 98 | . 47 51 . . . . Explosive 523 | . . . . . 523 . Electromagnetic . | . . . . . . . Impact . | . . . . . . . Slashing . | . . . . . . . Piercing . | . . . . . . . Highest Corruption 4 | . 4 . . . 2 . Average Corruption 2 | . 3 . . . 2 . Corruption Purged . | . . . . . . . Corruption Blocked . | . . . . . . . Effects 3 | . 1 . . . 2 . Message Errors 1 | . 1 . . . . . Matter Fused 2 | . . . . . 2 . Overload Shots . | . . . . . . . Overflow Damage 22 | . . . . . 22 . Projectiles . | . . . . . . . Explosions 22 | . . . . . 22 . Melee . | . . . . . . . Knockbacks . | . . . . . . . Impact . | . . . . . . . Kinetic . | . . . . . . . Secondary . | . . . . . . . Self-Inflicted Damage 50 | . 2 . . 2 46 . Shots . | . . . . . . . Rammed 32 | . 2 . . 2 28 . Targets Rammed 32 | . 2 . . 2 28 . Kicked . | . . . . . . . Crushed . | . . . . . . . Highest Temperature 177 | . 177 81 47 78 1 . Average Temperature 44 | . 84 38 27 37 1 . Received Heat Transfer 417 | . 123 24 90 27 153 . Siege Activations . | . . . . . . . Robots Corrupted . | . . . . . . . Combat Hostiles . | . . . . . . . Parts Fried . | . . . . . . . Impact Corruptions . | . . . . . . . Robots Melted . | . . . . . . . Combat Hostiles . | . . . . . . . Parts Melted 1 | . . 1 . . . . Heat Transferred 334 | . 112 222 . . . . Parts Sabotaged . | . . . . . . . Parts Stolen . | . . . . . . . Parts Stripped . | . . . . . . . Power Chain Reactions . | . . . . . . . Missiles Intercepted . | . . . . . . . Alert | -11 -10 -9 -8 -7 -6 -5 ------- Run | Scr Mat Mat Mat Fac Fac Fac Peak Influence 533 | . 145 131 105 114 533 183 Initial 183 | . . 61 55 47 16 183 Average 172 | . 74 89 90 64 253 183 Maximum Alert Level 2 | . . . . . 2 . Low Security (%) 66 | 100 100 100 100 100 37 100 Level 1 14 | . . . . . 26 . Level 2 19 | . . . . . 36 . Level 3 . | . . . . . . . Level 4 . | . . . . . . . Level 5 . | . . . . . . . High Security . | . . . . . . . Max Security . | . . . . . . . Squads Dispatched 12 | . . . 2 2 8 . Investigation 3 | . . . 1 1 1 . Extermination 1 | . . . . . 1 . Reinforcement 8 | . . . 1 1 6 . Assault . | . . . . . . . Garrison . | . . . . . . . Intercept . | . . . . . . . Searches Triggered 1 | . . . . . 1 . Construction Impeded 1 | . . . . . 1 . Haulers Reinforced 1 | . . . . . 1 . Active Scanning Responses . | . . . . . . . Cargo Convoy Interrupts . | . . . . . . . Stealth | -11 -10 -9 -8 -7 -6 -5 --------- Run | Scr Mat Mat Mat Fac Fac Fac Distress Signals 4 | . 1 1 1 . 1 . Communications Jammed . | . . . . . . . Distress Signals . | . . . . . . . Times Spotted 70 | . 11 9 12 4 34 . Peak Tracking Total 12 | . 8 6 10 3 12 . Tactical Retreats 9 | . . 1 . 1 7 . Traps | -11 -10 -9 -8 -7 -6 -5 ------- Run | Scr Mat Mat Mat Fac Fac Fac Traps Triggered 5 | . 1 1 1 . 2 . Indirectly . | . . . . . . . Trap Hack Attempts . | . . . . . . . Triggered . | . . . . . . . Disarmed . | . . . . . . . Reprogrammed . | . . . . . . . Reused . | . . . . . . . Traps Extracted . | . . . . . . . Installed . | . . . . . . . Triggered . | . . . . . . . Machines | -11 -10 -9 -8 -7 -6 -5 ---------- Run | Scr Mat Mat Mat Fac Fac Fac Machines Disabled 6 | . . . . . 6 . Max in Single Turn 3 | . . . . . 3 . Machines Sabotaged . | . . . . . . . Garrisons Compromised . | . . . . . . . Overloaded Fab Kills . | . . . . . . . Hacking | -11 -10 -9 -8 -7 -6 -5 --------- Run | Scr Mat Mat Mat Fac Fac Fac Machines Accessed 3 | . 1 . . 2 . . Terminals 3 | . 1 . . 2 . . Fabricators . | . . . . . . . Repair Stations . | . . . . . . . Recycling Units . | . . . . . . . Scanalyzers . | . . . . . . . Garrison Access . | . . . . . . . Total Hacks 6 | . 2 . . 4 . . Successful 3 | . 1 . . 2 . . Failed 3 | . 1 . . 2 . . Catastrophic 1 | . . . . 1 . . Database Lockouts . | . . . . . . . Manual 5 | . 2 . . 3 . . Terminals 6 | . 2 . . 4 . . Fabricators . | . . . . . . . Repair Stations . | . . . . . . . Recycling Units . | . . . . . . . Scanalyzers . | . . . . . . . Garrison Access . | . . . . . . . Terminal Hacks 2 | . . . . 2 . . Level Access Points 1 | . . . . 1 . . Zone Layout 1 | . . . . 1 . . Fabricator Hacks . | . . . . . . . Repair Station Hacks . | . . . . . . . Recycling Unit Hacks . | . . . . . . . Scanalyzer . | . . . . . . . Garrison Access Hacks . | . . . . . . . Unauthorized Hacks 1 | . 1 . . . . . Terminals 1 | . 1 . . . . . Botnet 1 | . 1 . . . . . Fabricators . | . . . . . . . Repair Stations . | . . . . . . . Recycling Units . | . . . . . . . Scanalyzers . | . . . . . . . Garrison Access . | . . . . . . . Data Cores Recovered . | . . . . . . . Used . | . . . . . . . Hacking Detections 3 | . 1 . . 2 . . Full Trace Events 1 | . . . . 1 . . Feedback Events . | . . . . . . . Feedback Blocked . | . . . . . . . Robot Schematics Acquired . | . . . . . . . Robots Built . | . . . . . . . Authchips . | . . . . . . . Time . | . . . . . . . Total Robot Build Rating . | . . . . . . . Part Schematics Acquired . | . . . . . . . Parts Built . | . . . . . . . Authchips . | . . . . . . . Time . | . . . . . . . Total Part Build Rating . | . . . . . . . Parts Repaired . | . . . . . . . Time . | . . . . . . . Parts Recycled . | . . . . . . . Recycled Matter . | . . . . . . . Retrieved Matter . | . . . . . . . Retrieved Components . | . . . . . . . Parts Scanalyzed . | . . . . . . . Part Schematics Acquired . | . . . . . . . Parts Damaged . | . . . . . . . Bothacking | -11 -10 -9 -8 -7 -6 -5 ------------ Run | Scr Mat Mat Mat Fac Fac Fac Used RIF Installer . | . . . . . . . Robots Hacked . | . . . . . . . Non-combat . | . . . . . . . Combat . | . . . . . . . Robot Hacks Applied . | . . . . . . . Relay Couplers Released . | . . . . . . . Fabnet Peak Effective % . | . . . . . . . Robots Rewired . | . . . . . . . Allies Hacked . | . . . . . . . Hacks Repelled . | . . . . . . . Allies | -11 -10 -9 -8 -7 -6 -5 -------- Run | Scr Mat Mat Mat Fac Fac Fac Total Allies . | . . . . . . . Largest Group . | . . . . . . . Highest-Rated Group . | . . . . . . . Highest-Rated Ally . | . . . . . . . Total Orders . | . . . . . . . Ally Attacks . | . . . . . . . Total Damage . | . . . . . . . Kills . | . . . . . . . Allies Corrupted . | . . . . . . . Allies Melted . | . . . . . . . Intel | -11 -10 -9 -8 -7 -6 -5 ------- Run | Scr Mat Mat Mat Fac Fac Fac Robot Analysis Total . | . . . . . . . Derelict Logs Recovered . | . . . . . . . Drone Launches . | . . . . . . . Drone Recoveries . | . . . . . . . Exploration | -11 -10 -9 -8 -7 -6 -5 ------------- Run | Scr Mat Mat Mat Fac Fac Fac Turns Passed 677 | 21 87 48 59 79 367 16 Spaces Moved 1344 | 24 122 88 181 208 692 29 Core 443 | 24 59 . . 3 357 . Treads . | . . . . . . . Legs . | . . . . . . . Wheels . | . . . . . . . Hover . | . . . . . . . Flight 901 | . 63 88 181 205 335 29 Fastest Speed 27 | 50 37 31 27 27 35 40 Average Speed 38 | 50 43 31 28 29 43 40 Slowest Speed 200 | 50 50 31 31 200 50 40 Overloaded Moves . | . . . . . . . Propulsion Burnouts . | . . . . . . . Robots Hopped 21 | . 7 1 7 4 2 . Cave-ins Triggered . | . . . . . . . Exploration Rate (%) 17 | 4 43 15 18 9 30 2 Regions Visited 6 Branch Regions . Pre-discovered Areas . | . . . . . . . Known Exits Taken 1 | . . . . 1 . . Unknown Exits Taken 5 | 1 1 1 1 . 1 . Scrap Searched . | . . . . . . . Spaces Dug 2 | . . . . . 2 . Terrain Destroyed 28 | . . . . . 28 . Melee 2 | . . . . . 2 . Projectile . | . . . . . . . AOE 26 | . . . . . 26 . Terrain Rammed . | . . . . . . . Walls Destroyed . | . . . . . . . Machines Disabled . | . . . . . . . Actions | -11 -10 -9 -8 -7 -6 -5 --------- Run | Scr Mat Mat Mat Fac Fac Fac Total 1438 | 30 136 97 179 219 744 33 Wait 5 | . 4 . . 1 . . Move 1301 | 23 110 85 167 200 687 29 Hop 17 | . 4 1 6 4 2 . Pick Up 20 | 3 4 . 1 7 3 2 Fast Attach 20 | 4 2 1 2 1 10 . Attach 13 | . 1 4 2 1 3 2 Detach 4 | . . 1 1 1 1 . Swap 2 | . . . . 2 . . Drop 6 | . 3 . . 1 2 . Fire 17 | . 6 5 . . 6 . Melee 2 | . . . . . 2 . Ram 31 | . 2 . . 1 28 . Kick . | . . . . . . . Crush . | . . . . . . . Escape Stasis . | . . . . . . . Rewire . | . . . . . . . Trap . | . . . . . . . Miscellaneous . | . . . . . . . Route ------- -11/Scrapyard -10/Materials (discovered 2 exits: [*Mat] / [*Min]) -9/Materials -8/Materials -7/Factory (discovered 4 exits: *Fac x4) -6/Factory -5/Factory History --------- Turn | Location | Event 2 | -11/Scrapyard | Met Revision 17 10 | -11/Scrapyard | Discovered new exit (range 16) 22 | -11/Scrapyard | Entered Materials 39 | -10/Materials | Discovered new exit (range 8) 103 | -10/Materials | Discovered new exit (range 16) 109 | -10/Materials | Entered another Materials area 109 | -9/Materials | Evolved 2 slots: Propulsion x2 153 | -9/Materials | Discovered new exit (range 11) 157 | -9/Materials | Entered another Materials area 157 | -8/Materials | Evolved 2 slots: Power x1, Propulsion x1 212 | -8/Materials | Discovered new exit (range 16) 216 | -8/Materials | Entered Factory 216 | -7/Factory | Evolved 2 slots: Propulsion x1, Utility x1 261 | -7/Factory | Identified exit to Factory 295 | -7/Factory | Entered another Factory area 295 | -6/Factory | Evolved 2 slots: Utility x2 324 | -6/Factory | Lost 8 parts (1p5n2w) 422 | -6/Factory | Core integrity fell below 50% 501 | -6/Factory | Core integrity fell below 20% 562 | -6/Factory | Build established: Mutant 645 | -6/Factory | Search patrols dispatched 656 | -6/Factory | Discovered new exit (range 15) 662 | -6/Factory | Entered another Factory area 662 | -5/Factory | Evolved 2 slots: Propulsion x2 678 | -5/Factory | Self-destructed Last Messages --------------- 00535_ K-01 Serf collects debris. 00543_ K-01 Serf cleans the Fabricator. 00545_ ALERT: Rogue bot located, Programmers report to Factory Zone 2U. 00576_ Acquired Power Maul. 00579_ Acquired Missile Launcher. 00581_ Acquired Imp. System Shield. 00592_ Acquired Adv. Terrain Scan Processor. 00600_ ALERT: Security rotation in progress. 00626_ System corrupted: Matter fused (-10). 00628_ VTOL Module destroyed. 00633_ Acquired Nuclear Pulse Thruster. 00645_ ALERT: Heightened foreign activity detected, multiple search patrols dispatched. 00656_ EXIT=FOUND PARAMETERS=PROPULSION+2 LOCATION=UNKNOWN GOAL=ESCAPE 00672_ Acquired Imp. Coolant Injector. 00678_ Connecting with Terminal... 00678_ Current location identified: Factory Map ----- +----------------------------------------------------+ | ????????????????????????????? ?????????????? | | ???????????????????????????####+####???????????? | | ???????????????????????????# #???????????? | | ???????????????????????????# #???????????? | | ???????????????????????????# #???????????? | | ???????????????????????????# #???????????? | | ???????????????????????????# #???????????? | | ???????????????????????????# ###???????????? | | ?????????????????########### #?????????????? | | ???????????????? #?????????????? | | ???????????????? #?????????????? | | ???????????????? #?????????????? | | ?????????????????"" """ """ """ #?????????????? | | ????????????? """ """ """ """ #?????????????? | | ?????????????? """ """ """ """ #?????????????? | | ??????????????? #?????????????? | | ??????????????? """ !! #?????????????? | | ????????????????"F"" """ !! #?????????????? | | ?????????????# """" """ !!! #?????????????? | | ?????????????# #?????????????? | | ?????????????# #?????????????? | | ???????????????#########+#########?????????????? | | ???????????????????# ] #?????????????????? | | ???????????????????# """ #?????????????????? | | ???????????????????# """ "" #?????????????????? | | ???????????????????# """ @"" #?????????????????? | | ???????????????????# T" #?????????????????? | | ???????????????????# "" #?????????????????? | | ???????????????????# "" #?????????????????? | | ???????????????????# #?????????????????? | | ???????????????????###########?????????????????? | | ???????????????????????????????????????????????? | | ???????????????????????????????????????????????? | | ???????????????????????????????????????????????? | | ???????????????????????????????????????????????? | | ???????????????????????????????????????????????? | | ???????????????????????????????????????????????? | | ???????????????????????????????????????????????? | | ???????????????????????????????????????????????? | | ???????????????????????????????????????????????? | | ???????????????????????????????????????????????? | | ???????????????????????????????????????????????? | | ???????????????????????????????????????????????? | | ???????????????????????????????????????????????? | | ???????????????????????????????????????????????? | | ???????????????????????????????????????????????? | | ???????????????????????????????????????????????? | | ???????????????????????????????????????????????? | | ???????????????????????????????????????????????? | | ???????????????????????????????????????????????? | +----------------------------------------------------+ Best States ------------- Heat Dissipation 40 Coolant Potential 65 Energy Generation 19 Energy Capacity 265 Matter Stores 300 Matter Capacity 300 Sight Range 16 Terrain Scan Density 410 Jamming Range 12 Corruption Containment 16 Propulsion Shielding 33 Evasion (%) 64 Melee Accuracy 16 Recoil Reduction 2 Offensive Hacking 20 Defensive Hacking 12 Item Schematics ----------------- None Robot Schematics ------------------ None Fabricated ------------ Nothing Alien Tech Used ----------------- None Achievements -------------- None Challenges ------------ None Game ------ Seed ReinforcedReflectivePick Manual? 0 Play Time 00:12:05 Cumulative 469.9 hours Start 2022.08.29 @ 17:09:40 End 2022.08.29 @ 17:30:29 Sessions 1 Manual Loads 0 Difficulty Rogue Special Mode None Game No. 527 Rogue 526 Adventurer 0 Explorer 1 Win Type - Total 15 Types 10/0/2/3/0/0/0/0/0 Lore% 79 Gallery% 88 Achievement% 69 Wizard Run 0 Options --------- ASCII 0 Keyboard 1 Movement Vi Keybinds 0 Fullscreen 1 Font 18/SmallcapsGlow Map View 76x50 Tactical HUD 1 Map Filters NONE Filters NONE Steam 1 RUN: f675ec3a-76f1-4886-9567-08c7bc9f4403